Cogmind - Beta 13 @@@ ROGUE MODE // 2024.06.09 @ 18:58:41 Player: Lunace Result: Destroyed by H-61 Shepherd with Heavy Assault Cannon Performance ------------- Evolutions (2) 1000 Regions Visited (5) 1000 Robots Destroyed (38) 190 Value Destroyed (708) 708 Prototype IDs (26) 520 Alien Tech Used (0) 0 Bonus (300) 300 TOTAL SCORE: 3718 Bonus ------- Aligned with FarCom 300 Cogmind --------- Core Integrity 0/550 Matter 149/300 Energy 48/100 System Corruption 14% Temperature Cool (9) Movement Core (50) Location -8/Materials Parts ------- > --- POWER (1) -------- (None) > --- PROPULSION (4) --- (None) > --- UTILITY (4) ------ Improved Heat Sink > --- WEAPON (2) ------- (None) > --- INVENTORY (5) ---- Reinforced Ion Engine High-capacity Matter Pod (25) Gatling Laser Gatling Laser Latent Energy Streamer Peak State ------------ > --- POWER ------------ Light Ion Engine > --- PROPULSION ------- Light Treads Light Treads Light Treads Advanced Treads > --- UTILITY ---------- Large Storage Unit Advanced Targeting Computer Advanced Targeting Computer Hardlight Generator > --- WEAPON ----------- Gauss Rifle Gauss Rifle > --- INVENTORY -------- Compact Matter Pod Light Armor Plating Gatling Laser Gatling Laser Gatling Laser Gatling Laser Latent Energy Streamer Heavy Particle Cannon Heavy Particle Cannon Gauss Rifle Gauss Rifle Grenade Launcher [Rating: 29] Favorites ----------- Power Ion Engine Engine Ion Engine Propulsion Light Treads Treads Light Treads Utility Large Storage Unit Device Hardlight Generator Storage Large Storage Unit Processor Advanced Targeting Computer Protection Light Armor Plating Weapon Gauss Rifle Energy Gun Advanced Beam Rifle Energy Cannon Latent Energy Streamer Ballistic Gun Gauss Rifle Launcher Grenade Launcher Build | -11 -10 -10 -10 -9 -8 ------- Run | Yrd Mat Min Exi Min Mat Slots Evolved 4 | . . . . . 4 Power . | . . . . . . Propulsion 2 | . . . . . 2 Utility 2 | . . . . . 2 Weapon . | . . . . . . Parts Attached 44 | 7 6 1 1 2 27 Power 5 | 1 1 1 . . 2 Engine 5 | 1 1 1 . . 2 Core . | . . . . . . Reactor . | . . . . . . Propulsion 6 | 2 . . . . 4 Treads 6 | 2 . . . . 4 Leg . | . . . . . . Wheel . | . . . . . . Hover . | . . . . . . Flight . | . . . . . . Utility 15 | 2 5 . 1 1 6 Device 5 | 1 2 . . . 2 Storage 3 | 1 1 . 1 . . Processor 3 | . . . . . 3 Hackware . | . . . . . . Protection 4 | . 2 . . 1 1 Artifact . | . . . . . . Weapon 18 | 2 . . . 1 15 Energy Gun 4 | . . . . . 4 Energy Cannon 1 | . . . . . 1 Ballistic Gun 10 | 2 . . . . 8 Ballistic Cannon . | . . . . . . Launcher 3 | . . . . 1 2 Special Weapon . | . . . . . . Impact Weapon . | . . . . . . Slashing Weapon . | . . . . . . Piercing Weapon . | . . . . . . Special Melee Weapon . | . . . . . . Unidentified Prototypes 3 | . . . . . 3 Parts Lost 15 | . . . . . 15 Power 3 | . . . . . 3 Propulsion 6 | . . . . . 6 Utility 3 | . . . . . 3 Weapon 3 | . . . . . 3 Highest Loss Streak 10 | . . . . . 10 To Critical Strikes . | . . . . . . Average Slot Usage (%) 92 | . 100 100 100 100 85 Engine 10 | . 14 14 14 14 7 Treads 27 | . 28 28 28 28 26 Device 8 | . 11 14 14 1 6 Storage 11 | . 14 14 14 14 8 Processor 5 | . . . . . 10 Protection 5 | . 2 . . 12 6 Ballistic Gun 19 | . 28 28 28 23 11 Launcher 2 | . . . . 5 4 Naked Turns 3 | . . . . . 3 Heaviest Build 41 | 14 31 29 29 33 41 Greatest Support 82 | 40 40 40 40 40 82 Greatest Overweight (x) 1 | . . . . . 1 Average Overweight (x) . | . . . . . . Largest Inventory Capacity 15 | 8 15 15 15 15 15 Average Capacity 14 | 7 11 15 15 15 14 Most Carried 14 | 2 8 9 11 10 14 Average Carried 9 | 1 4 7 9 8 11 Final Capacity 15 | 8 15 15 15 15 5 Final Carried 10 | 2 8 9 10 8 5 Class Distribution -------------------- 95% | Mutant 4% | Scavenger-Mutant Dominant Class ---------------- Mutant | -10/Materials Mutant | -10/Mines Mutant | -10/Exiles Mutant | -9/Mines Mutant | -8/Materials Resources | -11 -10 -10 -10 -9 -8 ----------- Run | Yrd Mat Min Exi Min Mat Matter Collected 1018 | 259 139 58 . 20 542 Remotely . | . . . . . . Salvage Created 1046 | 66 122 79 . 97 682 Parts 72 | 4 8 3 . 6 51 Haulers Intercepted 2 | . . . . . 2 Recyclers Shooed 3 | . . . . . 3 Parts Field Recycled . | . . . . . . Retrieved Matter . | . . . . . . Parts Self-Destructed . | . . . . . . Prevented . | . . . . . . Kills | -11 -10 -10 -10 -9 -8 ------- Run | Yrd Mat Min Exi Min Mat Combat Hostiles Destroyed 24 | . 5 2 . 4 13 Guns 10 | . 5 2 . . 3 AOE 14 | . . . . 4 10 Classes Destroyed 11 | 2 2 . . . 7 Worker 2 | . . . . . 2 Builder 2 | . . . . . 2 Tunneler 1 | 1 . . . . . Hauler 2 | . . . . . 2 Recycler 5 | 1 . . . 1 3 Watcher 2 | . . . . . 2 Swarmer 14 | . 3 . . 4 7 Grunt 6 | . 2 2 . . 2 Brawler 2 | . . . . . 2 Sentry 1 | . . . . . 1 Hunter 1 | . . . . . 1 Best Kill Streak 8 | 1 3 2 . 5 8 Combat Bots Only 7 | . 3 2 . 4 7 Max Kills in Single Turn 4 | 1 1 1 . 4 3 Gunslinging . | . . . . . . Exploded 3 | . . . . 3 3 Melee . | . . . . . . Uniques/NPCs Destroyed . | . . . . . . Combat | -11 -10 -10 -10 -9 -8 -------- Run | Yrd Mat Min Exi Min Mat Hostile Shots Fired 213 | . 51 11 . 3 148 Missed 50 | . 10 1 . 1 38 Damage Taken 2569 | . 366 123 . 18 2062 Core 682 | . 63 39 . . 580 Absorbed by Shields 156 | . . . . . 156 Core Remaining (%) 79 | 100 . . . 59 . Volleys Fired 86 | 5 19 5 . 2 55 Largest 2 | 2 2 2 . 1 2 Hottest 58 | 40 40 40 . 30 58 Shots Fired 143 | 10 38 10 . 2 83 Gun 130 | 10 38 10 . . 72 Cannon . | . . . . . . Launcher 13 | . . . . 2 11 Special . | . . . . . . Kinetic 130 | 10 38 10 . . 72 Thermal . | . . . . . . Explosive 13 | . . . . 2 11 Electromagnetic . | . . . . . . Robot Hit Streak 14 | 4 8 9 . . 14 Robot Miss Streak 6 | 1 2 1 . 1 6 Penetration Max 1 | . . . . . 1 Secondary Targets 1 | . . 1 . . . Max Gunslinging Chain 1 | . . 1 . . . Shots Hit Robots 86 | 7 23 7 . . 49 Core Hits 70 | 4 9 5 . 6 46 Critical Kills . | . . . . . . Critical Parts Destroyed . | . . . . . . Critical Strikes . | . . . . . . Melee Attacks . | . . . . . . Impact . | . . . . . . Slashing . | . . . . . . Piercing . | . . . . . . Sneak Attacks . | . . . . . . Combat Hostiles . | . . . . . . Follow-up Attacks . | . . . . . . Damage Inflicted 2895 | 86 255 78 . 175 2301 Guns 1490 | 86 255 78 . . 1071 Cannons . | . . . . . . Explosions 1405 | . . . . 175 1230 Melee . | . . . . . . Ramming . | . . . . . . Kinetic 1490 | 86 255 78 . . 1071 Thermal . | . . . . . . Explosive 1405 | . . . . 175 1230 Electromagnetic . | . . . . . . Impact . | . . . . . . Slashing . | . . . . . . Piercing . | . . . . . . Highest Corruption 14 | . . . . . 14 Average Corruption 13 | . . . . . 13 Corruption Purged . | . . . . . . Corruption Blocked . | . . . . . . Effects 4 | . . . . . 4 Message Errors 1 | . . . . . 1 Matter Fused 1 | . . . . . 1 Misdirections 2 | . . . . . 2 Overload Shots . | . . . . . . Overflow Damage 15 | . . . . . 15 Projectiles . | . . . . . . Explosions 15 | . . . . . 15 Melee . | . . . . . . Knockbacks . | . . . . . . Impact . | . . . . . . Kinetic . | . . . . . . Secondary . | . . . . . . Self-Inflicted Damage 157 | . . . . . 157 Shots 6 | . . . . . 6 Rammed . | . . . . . . Targets Rammed . | . . . . . . Kicked . | . . . . . . Crushed . | . . . . . . Highest Temperature 16 | . 13 16 . . 13 Average Temperature 6 | . 6 9 . . 4 Received Heat Transfer 581 | . 48 69 . . 464 Siege Activations . | . . . . . . Robots Corrupted . | . . . . . . Combat Hostiles . | . . . . . . Parts Fried . | . . . . . . Impact Corruptions . | . . . . . . Robots Melted . | . . . . . . Combat Hostiles . | . . . . . . Parts Melted . | . . . . . . Heat Transferred . | . . . . . . Parts Sabotaged . | . . . . . . Parts Stolen . | . . . . . . Parts Stripped . | . . . . . . Power Chain Reactions . | . . . . . . Alert | -11 -10 -10 -10 -9 -8 ------- Run | Yrd Mat Min Exi Min Mat Peak Influence 249 | 10 140 50 . 167 249 Initial 65 | . 6 . . . 65 Average 74 | 3 58 47 . 53 95 Maximum Alert Level 1 | . . . . . 1 Low Security (%) 95 | 100 100 100 . 100 92 Level 1 4 | . . . . . 8 Level 2 . | . . . . . . Level 3 . | . . . . . . Level 4 . | . . . . . . Level 5 . | . . . . . . High Security . | . . . . . . Max Security . | . . . . . . Squads Dispatched 8 | . 2 . . . 6 Investigation 1 | . 1 . . . . Extermination . | . . . . . . Reinforcement 4 | . 1 . . . 3 Assault . | . . . . . . Garrison 3 | . . . . . 3 Intercept . | . . . . . . Searches Triggered . | . . . . . . Construction Impeded . | . . . . . . Haulers Reinforced . | . . . . . . Active Scanning Responses . | . . . . . . Cargo Convoy Interrupts . | . . . . . . Stealth | -11 -10 -10 -10 -9 -8 --------- Run | Yrd Mat Min Exi Min Mat Distress Signals 4 | . 1 . . . 3 Communications Jammed . | . . . . . . Distress Signals . | . . . . . . Times Spotted 55 | . 11 2 . 4 38 Peak Tracking Total 10 | . 4 2 . 4 10 Tactical Retreats 1 | . . . . . 1 Traps | -11 -10 -10 -10 -9 -8 ------- Run | Yrd Mat Min Exi Min Mat Traps Triggered 1 | . 1 . . . . Indirectly . | . . . . . . Trap Hack Attempts . | . . . . . . Triggered . | . . . . . . Disarmed . | . . . . . . Reprogrammed . | . . . . . . Reused . | . . . . . . Traps Extracted . | . . . . . . Installed . | . . . . . . Triggered . | . . . . . . Machines | -11 -10 -10 -10 -9 -8 ---------- Run | Yrd Mat Min Exi Min Mat Machines Disabled 5 | . . . . 4 1 Max in Single Turn 4 | . . . . 4 1 Machines Repaired . | . . . . . . Machines Dismantled . | . . . . . . Machines Sabotaged . | . . . . . . Overloaded Fab Kills . | . . . . . . Hacking | -11 -10 -10 -10 -9 -8 --------- Run | Yrd Mat Min Exi Min Mat Machines Accessed 9 | . 2 . 2 . 5 Terminals 6 | . 2 . . . 4 Fabricators . | . . . . . . Repair Stations . | . . . . . . Recycling Units 1 | . . . . . 1 Scanalyzers . | . . . . . . Garrison Access . | . . . . . . Total Hacks 16 | . 4 . 2 . 10 Successful 6 | . 1 . 2 . 3 Failed 10 | . 3 . . . 7 Catastrophic 2 | . 1 . . . 1 Database Lockouts . | . . . . . . Manual 13 | . 4 . 1 . 8 Terminals 13 | . 4 . . . 9 Fabricators . | . . . . . . Repair Stations . | . . . . . . Recycling Units 1 | . . . . . 1 Scanalyzers . | . . . . . . Garrison Access . | . . . . . . Terminal Hacks 2 | . . . 2 . . Record 1 | . . . 1 . . Derelict Proto ID Bank 1 | . . . 1 . . Fabricator Hacks . | . . . . . . Repair Station Hacks . | . . . . . . Recycling Unit Hacks 1 | . . . . . 1 Retrieve Components 1 | . . . . . 1 Scanalyzer . | . . . . . . Garrison Access Hacks . | . . . . . . Unauthorized Hacks 3 | . 1 . . . 2 Terminals 3 | . 1 . . . 2 Botnet 3 | . 1 . . . 2 Fabricators . | . . . . . . Repair Stations . | . . . . . . Recycling Units . | . . . . . . Scanalyzers . | . . . . . . Garrison Access . | . . . . . . Data Cores Recovered . | . . . . . . Used . | . . . . . . Hacking Detections 6 | . 2 . . . 4 Full Trace Events 1 | . . . . . 1 Feedback Events . | . . . . . . Feedback Blocked . | . . . . . . Robot Schematics Acquired . | . . . . . . Robots Built . | . . . . . . Authchips . | . . . . . . Time . | . . . . . . Total Robot Build Rating . | . . . . . . Part Schematics Acquired . | . . . . . . Parts Built . | . . . . . . Authchips . | . . . . . . Time . | . . . . . . Total Part Build Rating . | . . . . . . Parts Repaired . | . . . . . . Time . | . . . . . . Parts Recycled . | . . . . . . Recycled Matter . | . . . . . . Retrieved Matter . | . . . . . . Retrieved Components 10 | . . . . . 10 Parts Scanalyzed . | . . . . . . Part Schematics Acquired . | . . . . . . Parts Damaged . | . . . . . . Bothacking | -11 -10 -10 -10 -9 -8 ------------ Run | Yrd Mat Min Exi Min Mat Used RIF Installer . | . . . . . . Robots Hacked . | . . . . . . Non-combat . | . . . . . . Combat . | . . . . . . Robot Hacks Applied . | . . . . . . Relay Couplers Released . | . . . . . . Fabnet Peak Effective % . | . . . . . . Robots Rewired . | . . . . . . Allies Hacked . | . . . . . . Hacks Repelled . | . . . . . . Allies | -11 -10 -10 -10 -9 -8 -------- Run | Yrd Mat Min Exi Min Mat Total Allies 1 | . . . . 1 . Largest Group 1 | . . . . 1 . Highest-Rated Group 31 | . . . . 31 . Highest-Rated Ally 31 | . . . . 31 . Total Orders . | . . . . . . Ally Attacks 5 | . . . . 5 . Total Damage 84 | . . . . 84 . Kills 1 | . . . . 1 . Allies Corrupted . | . . . . . . Allies Melted . | . . . . . . Intel | -11 -10 -10 -10 -9 -8 ------- Run | Yrd Mat Min Exi Min Mat Robot Analysis Total . | . . . . . . Derelict Logs Recovered 1 | . . 1 . . . Drone Launches . | . . . . . . Drone Recoveries . | . . . . . . Exploration | -11 -10 -10 -10 -9 -8 ------------- Run | Yrd Mat Min Exi Min Mat Turns Passed 3001 | 145 443 234 421 283 1475 Spaces Moved 1429 | 75 235 136 262 164 557 Core 49 | 3 . . . . 46 Treads 1380 | 72 235 136 262 164 511 Legs . | . . . . . . Wheels . | . . . . . . Hover . | . . . . . . Flight . | . . . . . . Fastest Speed 50 | 50 160 160 160 160 50 Average Speed 155 | 155 160 160 160 160 148 Slowest Speed 240 | 160 160 160 160 160 240 Overloaded Moves . | . . . . . . Propulsion Burnouts . | . . . . . . Robots Hopped . | . . . . . . Cave-ins Triggered . | . . . . . . Exploration Rate (%) 36 | 5 41 33 65 29 46 Regions Visited 5 Branch Regions 3 Pre-discovered Areas 1 | . . . 1 . . Known Exits Taken . | . . . . . . Unknown Exits Taken 5 | 1 1 1 1 1 . Scrap Searched . | . . . . . . Spaces Dug . | . . . . . . Terrain Destroyed 65 | . . . . 12 53 Melee . | . . . . . . Projectile 1 | . . . . . 1 AOE 64 | . . . . 12 52 Terrain Rammed . | . . . . . . Walls Destroyed . | . . . . . . Machines Disabled . | . . . . . . Actions | -11 -10 -10 -10 -9 -8 --------- Run | Yrd Mat Min Exi Min Mat Total 2070 | 91 265 144 264 183 1123 Wait 466 | 3 . . . 14 449 Move 1424 | 74 234 135 261 163 557 Hop . | . . . . . . Pick Up 23 | 2 5 2 1 . 13 Fast Attach 21 | 7 . . . . 14 Attach 10 | . . 1 . 1 8 Detach 4 | . . . . . 4 Swap 14 | . 6 . 1 1 6 Drop 22 | . 1 1 1 2 17 Fire 86 | 5 19 5 . 2 55 Melee . | . . . . . . Ram . | . . . . . . Kick . | . . . . . . Crush . | . . . . . . Escape Stasis . | . . . . . . Rewire . | . . . . . . Trap . | . . . . . . Miscellaneous . | . . . . . . Route ------- -11/Scrapyard -10/Materials (discovered 2 exits: [*Mat] / [*Min]) -10/Mines -10/Exiles -9/Mines -8/Materials (discovered 2 exits: [*Fac] / Sto) History --------- Turn | Location | Event 8 | -11/Scrapyard | Discovered new exit (range 15) 146 | -11/Scrapyard | Entered Materials 258 | -10/Materials | Discovered new exit (range 10) 334 | -10/Materials | Build established: Mutant 452 | -10/Materials | Discovered new exit (range 4) 589 | -10/Materials | Entered Mines 594 | -10/Mines | Met a Derelict bent on vengeance 817 | -10/Mines | Deemed a non-threat by the Exiles lab entrance 817 | -10/Mines | Discovered new exit (range 5) 823 | -10/Mines | Entered Exiles 863 | -10/Exiles | Met 8R-AWN 889 | -10/Exiles | Met EX-HEX 985 | -10/Exiles | Met EX-BIN 1003 | -10/Exiles | Aligned with FarCom system 1004 | -10/Exiles | Given EX-Vault access code 1041 | -10/Exiles | Opened EX-Vault 1052 | -10/Exiles | Found Latent Energy Streamer 1085 | -10/Exiles | Warned to stay clear of 0b10 Research branches 1107 | -10/Exiles | Exiles lab attacked by MAIN.C 1146 | -10/Exiles | Learned location of Zion (-6) 1222 | -10/Exiles | Discovered new exit (range 14) 1244 | -10/Exiles | Left Exiles lab with Latent Energy Streamer 1244 | -10/Exiles | Entered Mines 1247 | -9/Mines | Received a Mining Laser from a helpful Derelict 1344 | -9/Mines | Assembled infested the area 1349 | -9/Mines | Assisted by a Guerilla fighting off Assembled 1516 | -9/Mines | Discovered new exit (range 6) 1527 | -9/Mines | Entered Materials 1527 | -8/Materials | Evolved 4 slots: Propulsion x2, Utility x2 1528 | -8/Materials | Identified exit to Storage 2248 | -8/Materials | Destroyed 7 combat bots 2727 | -8/Materials | Garrison activated, responded to threat 2961 | -8/Materials | System corruption reached 10% 2977 | -8/Materials | Core integrity fell below 50% 3001 | -8/Materials | Core integrity fell below 20% 3001 | -8/Materials | Discovered new exit (range 15) 3002 | -8/Materials | Destroyed by H-61 Shepherd with Heavy Assault Cannon Last Messages --------------- 02975_ Adv. Targeting Computer destroyed. 02975_ Dropped Gatling Laser. 02976_ Dropped Hvy. Particle Cannon. 02977_ Dropped Lrg. Storage Unit. 02978_ Acquired 2 matter. 02978_ Acquired 5 matter. 02979_ U-05 Engineer lays Concrete. 02980_ Acquired Imp. Heat Sink. 02980_ U-05 Engineer lays Concrete. 02981_ U-05 Engineer builds a Wall. 02982_ Acquired 20 matter. 02982_ U-05 Engineer lays Concrete. 02983_ K-01 Serf collects debris. 02984_ Acquired Rnf. Ion Engine. 02984_ U-05 Engineer lays Concrete. 02985_ The unstable cave ceiling collapses. 02986_ K-01 Serf collects debris. 02988_ SBXFINRZK&VFZADX6UY4T9D2 03001_ Acquired 3 matter. 03001_ EXIT=FOUND Map ----- +----------------------------------------------------+ | | | | | | | | | | | | | | | | | | | | | | | | | | | | | | | | | | | | | | | ?????????????????????????????????????????????????? | | ?????????????????????????????????????????????????? | | ?????????????????????????????????????????????????? | | ???????????????????????????????#######???????????? | | ?????????????################### #???????????? | | ??????????# g #???????????? | | ??????????# H @ T #???????????? | | ??????????# g g #???????????? | | ?????????????########+########## #???????????? | | ???????????????????????????????## ###########??? | | ????????????????????????????????# # ! #??? | | ??????????????????????????# ????# # #??? | | ??????????????????????????# Y??# + #??? | | ??????????????????????????#= "" # # """"""" #??? | | ??????????????????????????# + # """"""?????? | | ??????????????????????????# """ # #?"""""??????? | | ??????????????????????????# ""??# #?""""???????? | | ??????????????????????????# ????# #??"""???????? | | ????????????????????????????????# #??##????????? | | ????????????????????????????????# #????????????? | | ????????????########????????????# #????????????? | | ????????????# #????????????#l #????????????? | | ########????# #????????????# #????????????? | | # #????# "" #??########### #????????????? | | #"" #????# "T #??# # #????????????? | | #"Y[= #????# "" #??# # #????????????? | | #"" [[ #????# #??# # ###+#####????? | | #=![! ####### # ###??# # ? | | # [ + #???# / #?????? | | ####+######## #### # """ #?????? | | #?# ## # "G #?????? | +----------------------------------------------------+ Best States ------------- Heat Dissipation 45 Energy Generation 10 Energy Capacity 250 Matter Stores 300 Matter Capacity 300 Sight Range 16 Terrain Scan Density 10 Armor Coverage 300 Evasion (%) 50 Targeting Accuracy 16 Recoil Reduction 4 Item Schematics ----------------- None Robot Schematics ------------------ None Fabricated ------------ Nothing Alien Tech Used ----------------- None Achievements -------------- None Challenges ------------ None Game ------ Seed FusionArcLink Manual? 0 Play Time 00:20:30 Cumulative 234.9 hours Start 2024.06.09 @ 18:36:39 End 2024.06.09 @ 18:58:41 Sessions 1 Manual Loads 0 Difficulty Rogue Special Mode None Game No. 232 Rogue 227 Adventurer 5 Explorer 0 Win Type - Total 4 Types 3/0/0/1/0/0/0/0/0 Lore% 61 Gallery% 80 Achievement% 61 Wizard Run 0 Options --------- Layout 2 ASCII 0 Keyboard 0 Movement Mouse Keybinds 0 Fullscreen 1 Font 24/Terminus Map View 50x44 Zoom Use 0% Tactical HUD 1 Map Filters NONE Filters NONE Steam 1 RUN: b2a85dca-1c79-4f98-aac4-1e2bc5e81045